fUST/lending_fUST_20250901
["ID","MTS","AMOUNT","RATE_DAILY","PERIOD"]
[382605289,1756677048794,-480.0,0.00017325,2]
[382605291,1756677048803,-480.0,0.00017325,2]
[382605292,1756677048812,-480.0,0.00017325,2]
[382605294,1756677048822,-480.0,0.00017325,2]
[382605296,1756677048831,-480.0,0.00017325,2]
[382605298,1756677048840,-502.60619226,0.00017325,2]
[382605300,1756677048849,-724.4,0.00017325,2]
[382605302,1756677048858,-735.04,0.00017325,2]
[382605304,1756677048868,-480.0,0.00017325,2]
[382605306,1756677048877,-480.0,0.00017325,2]
[382605308,1756677048887,-809.88,0.00017325,2]
[382605310,1756677048898,-808.44,0.00017325,2]
[382605312,1756677048908,-480.0,0.00017325,2]
[382605314,1756677048917,-665.31,0.00017325,2]
[382605316,1756677048927,-912.08,0.00017325,2]
[382605318,1756677048936,-941.2,0.00017325,2]
[382605320,1756677048945,-480.0,0.00017325,2]
[382605322,1756677048954,-480.0,0.00017325,2]
[382605324,1756677048964,-1043.97,0.00017325,2]
[382605326,1756677048973,-480.0,0.00017325,2]
[382605328,1756677048982,-480.0,0.00017325,2]
[382605330,1756677048991,-480.0,0.00017325,2]
[382605331,1756677049001,-480.0,0.00017325,2]
[382605333,1756677049010,-505.54,0.00017325,2]
[382605335,1756677049020,-480.0,0.00017325,2]
[382605337,1756677049030,-528.69,0.00017325,2]
[382605339,1756677049040,-194.61818637,0.00017325,2]
[382605341,1756677049050,-480.0,0.00017325,2]
[382605343,1756677049059,-480.0,0.00017325,2]
[382605345,1756677049068,-480.0,0.00017325,2]
[382605347,1756677049078,-480.0,0.00017325,2]
[382605349,1756677049087,-480.0,0.00017325,2]
[382605351,1756677049098,-1231.86,0.00017325,2]
[382605353,1756677049109,-778.24,0.00017325,2]
[382605355,1756677049119,-480.0,0.00017325,2]
[382605357,1756677049128,-480.0,0.00017325,2]
[382605359,1756677049137,-480.0,0.00017325,2]
[382605361,1756677049151,-480.0,0.00017325,2]
[382605363,1756677049160,-480.0,0.00017325,2]
[382605365,1756677049169,-922.61,0.00017325,2]
[382605367,1756677049178,-359.55014132,0.00017325,2]
[382605369,1756677049188,-480.0,0.00017325,2]
[382605371,1756677049197,-480.0,0.00017325,2]
[382605372,1756677049207,-480.0,0.00017325,2]
[382605374,1756677049216,-530.0,0.00017325,2]
[382605376,1756677049227,-480.0,0.00017325,2]
[382605378,1756677049237,-480.0,0.00017325,2]
[382605380,1756677049246,-480.0,0.00017325,2]
[382605382,1756677049256,-480.0,0.00017325,2]
[382605384,1756677049266,-480.0,0.00017325,2]
[382605386,1756677049275,-973.6,0.00017325,2]
[382605388,1756677049284,-480.0,0.00017325,2]
[382605390,1756677049295,-480.0,0.00017326,2]
[382605392,1756677049304,-480.0,0.00017326,2]
[382605394,1756677049315,-480.0,0.00017326,2]
[382605396,1756677049325,-480.0,0.00017326,2]
[382605398,1756677049334,-1029.15,0.00017326,2]
[382605400,1756677049343,-547.55,0.00017326,2]
[382605402,1756677049352,-480.0,0.00017326,2]
[382605404,1756677049362,-732.83,0.00017326,2]
[382605406,1756677049371,-544.21,0.00017326,2]
[382605408,1756677049380,-480.0,0.00017326,2]
[382605409,1756677049390,-480.0,0.00017326,2]
[382605411,1756677049399,-480.0,0.00017326,2]
[382605413,1756677049409,-480.0,0.00017326,2]
[382605415,1756677049418,-480.0,0.00017326,2]
[382605418,1756677049429,-497.23,0.00017326,2]
[382605419,1756677049438,-488.6,0.00017326,2]
[382605421,1756677049447,-480.0,0.00017326,2]
[382605423,1756677049457,-480.0,0.00017326,2]
[382605425,1756677049466,-480.0,0.00017326,2]
[382605427,1756677049475,-626.02,0.00017326,2]
[382605429,1756677049484,-565.13,0.00017326,2]
[382605431,1756677049494,-480.0,0.00017326,2]
[382605433,1756677049503,-613.83,0.00017326,2]
[382605435,1756677049513,-480.0,0.00017326,2]
[382605437,1756677049522,-1657.54,0.00017326,2]
[382605439,1756677049531,-614.92,0.00017326,2]
[382605441,1756677049541,-480.0,0.00017326,2]
[382605443,1756677049550,-506.51,0.00017326,2]
[382605445,1756677049562,-1008.3,0.00017326,2]
[382605447,1756677049570,-4100.22,0.00017326,2]
[382605449,1756677049579,-706.88,0.00017326,2]
[382605450,1756677049589,-480.0,0.00017326,2]
[382605452,1756677049598,-480.0,0.00017326,2]
[382605454,1756677049607,-587.23,0.00017326,2]
[382605456,1756677049618,-766.0,0.00017326,2]
[382605458,1756677049630,-480.0,0.00017326,2]
[382605460,1756677049640,-619.44,0.00017326,2]
[382605462,1756677049650,-480.0,0.00017326,2]
[382605464,1756677049659,-480.0,0.00017326,2]
[382605466,1756677049668,-480.0,0.00017326,2]
[382605468,1756677049678,-480.0,0.00017326,2]
[382605470,1756677049687,-3238.93,0.00017326,2]
[382605472,1756677049696,-609.25,0.00017326,2]
[382605474,1756677049705,-480.0,0.00017326,2]
[382605476,1756677049714,-3009.36,0.00017326,2]
[382605477,1756677049723,-1528.52,0.00017326,2]
[382605478,1756677049732,-909.97,0.00017326,2]
[382605479,1756677049741,-686.3,0.00017326,2]
[382605480,1756677049750,-707.75,0.00017326,2]
[382605481,1756677049759,-480.0,0.00017326,2]
[382605482,1756677049768,-568.84,0.00017326,2]
[382605483,1756677049777,-304.40385016,0.00017326,2]
[382605484,1756677049786,-480.0,0.00017326,2]
[382605485,1756677049794,-550.46,0.00017326,2]
[382605486,1756677049803,-695.87,0.00017326,2]
[382605487,1756677049812,-480.0,0.00017326,2]
[382605488,1756677049821,-706.79,0.00017326,2]
[382605489,1756677049830,-480.0,0.00017326,2]
[382605490,1756677049839,-480.0,0.00017326,2]
[382605491,1756677049848,-480.0,0.00017326,2]
[382605492,1756677049857,-674.39,0.00017326,2]
[382605493,1756677049866,-581.62450482,0.00017326,2]
[382605494,1756677049875,-480.0,0.00017326,2]
[382605495,1756677049884,-808.69,0.00017326,2]
[382605496,1756677049893,-480.0,0.00017326,2]
[382605497,1756677049902,-894.58,0.00017326,2]
[382605498,1756677049911,-480.0,0.00017326,2]
[382605499,1756677049920,-1982.59,0.00017326,2]
[382605500,1756677049929,-755.56,0.00017326,2]
[382605501,1756677049938,-480.0,0.00017326,2]
[382605502,1756677049946,-705.54,0.00017326,2]
[382605503,1756677049955,-480.0,0.00017327,2]
[382605504,1756677049964,-901.08,0.00017327,2]
[382605505,1756677049973,-882.01,0.00017327,2]
[382605506,1756677049982,-480.0,0.00017327,2]
[382605507,1756677049991,-524.00811405,0.00017327,2]
[382605508,1756677049999,-862.77,0.00017327,2]
[382605509,1756677050008,-480.0,0.00017327,2]
[382605511,1756677050017,-480.0,0.00017327,2]
[382605513,1756677050026,-480.0,0.00017327,2]
[382605515,1756677050035,-480.0,0.00017327,2]
[382605517,1756677050044,-480.0,0.00017327,2]
[382605519,1756677050053,-480.0,0.00017327,2]
[382605521,1756677050062,-480.0,0.00017327,2]
[382605523,1756677050071,-480.0,0.00017327,2]
[382605525,1756677050080,-480.0,0.00017327,2]
[382605527,1756677050089,-480.0,0.00017327,2]
[382605528,1756677050099,-480.0,0.00017327,2]
[382605530,1756677050108,-480.0,0.00017327,2]
[382605532,1756677050117,-480.0,0.00017327,2]
[382605534,1756677050126,-551.66,0.00017327,2]
[382605536,1756677050135,-480.0,0.00017327,2]
[382605538,1756677050145,-480.0,0.00017327,2]
[382605540,1756677050154,-480.0,0.00017327,2]
[382605542,1756677050163,-480.0,0.00017327,2]
[382605544,1756677050173,-597.03,0.00017327,2]
[382605546,1756677050182,-614.95,0.00017327,2]
[382605548,1756677050192,-500.0,0.00017327,2]
[382605550,1756677050201,-480.0,0.00017327,2]
[382605552,1756677050210,-480.0,0.00017327,2]
[382605554,1756677050220,-914.39,0.00017327,2]
[382605556,1756677050229,-876.51,0.00017327,2]
[382605558,1756677050238,-480.0,0.00017327,2]
[382605560,1756677050248,-480.0,0.00017327,2]
[382605562,1756677050258,-480.0,0.00017327,2]
[382605564,1756677050267,-480.0,0.00017327,2]
[382605566,1756677050276,-480.0,0.00017327,2]
[382605568,1756677050285,-480.0,0.00017327,2]
[382605570,1756677050294,-560.95,0.00017327,2]
[382605572,1756677050304,-721.42,0.00017327,2]
[382605574,1756677050313,-574.82,0.00017327,2]
[382605576,1756677050322,-480.0,0.00017327,2]
[382605578,1756677050331,-534.43,0.00017327,2]
[382605580,1756677050341,-481.15,0.00017327,2]
[382605582,1756677050351,-480.0,0.00017327,2]
[382605584,1756677050362,-480.0,0.00017327,2]
[382605586,1756677050371,-480.0,0.00017327,2]
[382605588,1756677050380,-480.0,0.00017327,2]
[382605590,1756677050390,-743.98,0.00017327,2]
[382605592,1756677050400,-480.0,0.00017327,2]
[382605594,1756677050409,-480.0,0.00017327,2]
[382605596,1756677050420,-502.95,0.00017327,2]
[382605598,1756677050428,-774.43,0.00017327,2]
[382605600,1756677050438,-480.0,0.00017327,2]
[382605602,1756677050449,-860.79,0.00017327,2]
[382605604,1756677050458,-480.0,0.00017327,2]
[382605606,1756677050467,-732.44,0.00017327,2]
[382605608,1756677050476,-1347.77,0.00017327,2]
[382605610,1756677050487,-480.0,0.00017327,2]
[382605612,1756677050496,-525.03,0.00017327,2]
[382605614,1756677050506,-480.0,0.00017327,2]
[382605616,1756677050515,-1046.11,0.00017327,2]
[382605618,1756677050524,-562.15,0.00017327,2]
[382605620,1756677050533,-480.0,0.00017327,2]
[382605622,1756677050543,-480.0,0.00017327,2]
[382605624,1756677050555,-480.0,0.00017327,2]
[382605626,1756677050565,-480.0,0.00017327,2]
[382605628,1756677050574,-480.0,0.00017327,2]
[382605630,1756677050584,-614.67,0.00017327,2]
[382605632,1756677050594,-480.0,0.00017327,2]
[382605634,1756677050604,-480.0,0.00017327,2]
[382605635,1756677050613,-480.0,0.00017327,2]
[382605638,1756677050624,-480.0,0.00017327,2]
[382605640,1756677050636,-480.0,0.00017327,2]
[382605642,1756677050646,-480.0,0.00017327,2]
[382605644,1756677050655,-480.0,0.00017327,2]
[382605646,1756677050664,-480.0,0.00017327,2]
[382605648,1756677050673,-287.21123042,0.00017327,2]
[382605649,1756677050682,-480.0,0.00017327,2]
[382605652,1756677050692,-833.79,0.00017328,2]
[382605653,1756677050702,-64.1529411,0.00017328,2]
[382605674,1756677050895,-415.8470589,0.00017328,2]
[382605676,1756677050905,-480.0,0.00017328,2]
[382605678,1756677050914,-480.0,0.00017328,2]
[382605680,1756677050923,-480.0,0.00017328,2]
[382605682,1756677050933,-480.0,0.00017328,2]
[382605684,1756677050942,-151.0,0.000174,2]
[382605686,1756677050951,-151.0,0.000174,2]
[382605688,1756677050960,-13865.6893411,0.00017401,2]
[382605778,1756677051816,-480.0,0.00016501,2]
[382605780,1756677051826,-480.0,0.00016503,2]
[382605782,1756677051835,-500.0,0.00016503,2]
[382605784,1756677051845,-480.0,0.00016504,2]
[382605786,1756677051854,-480.0,0.00016504,2]
[382605788,1756677051864,-794.11,0.00016505,2]
[382605790,1756677051873,-480.0,0.00016775,2]
[382605792,1756677051883,-500.0,0.00016777,2]
[382605794,1756677051892,-480.0,0.00016777,2]
[382605796,1756677051902,-480.0,0.00016778,2]
[382605798,1756677051912,-480.0,0.00016778,2]
[382605800,1756677051922,-794.11,0.00016779,2]
[382605802,1756677051931,-570.82,0.00017049,2]
[382605804,1756677051941,-500.0,0.00017051,2]
[382605806,1756677051951,-387.33,0.00017052,2]
[382605809,1756677051962,-480.0,0.00017052,2]
[382605810,1756677051971,-794.11,0.00017053,2]
[382605813,1756677051981,-500.0,0.00017325,2]
[382605815,1756677051993,-794.11,0.00017327,2]
[382605817,1756677052005,-69432.5353222,0.00017401,2]
[382605819,1756677052014,-500.0,0.00017402,2]
[382605821,1756677052023,-151.0,0.000175,2]
[382605823,1756677052032,-151.0,0.000175,2]
[382605825,1756677052041,-151.0,0.000175,2]
[382605827,1756677052050,-160.0,0.00017522,2]
[382605828,1756677052059,-2240.88228986,0.00017587,2]
[382605830,1756677052069,-262.09247977,0.00017596,2]
[382605832,1756677052078,-618.44,0.00017596,2]
[382605835,1756677052088,-776.29,0.00017596,2]
[382605837,1756677052099,-480.0,0.00017596,2]
[382605838,1756677052108,-488.92,0.00017596,2]
[382605840,1756677052117,-838.4,0.00017596,2]
[382605843,1756677052127,-480.0,0.00017597,2]
[382605845,1756677052137,-716.62,0.00017597,2]
[382605847,1756677052147,-480.0,0.00017597,2]
[382605848,1756677052157,-480.0,0.00017597,2]
[382605851,1756677052169,-480.0,0.00017597,2]
[382605852,1756677052178,-480.0,0.00017597,2]
[382605854,1756677052187,-480.0,0.00017597,2]
[382605856,1756677052197,-480.16,0.00017597,2]
[382605858,1756677052206,-480.0,0.00017597,2]
[382605860,1756677052216,-480.0,0.00017597,2]
[382605862,1756677052227,-480.0,0.00017597,2]
[382605864,1756677052236,-480.0,0.00017597,2]
[382605866,1756677052246,-480.0,0.00017597,2]
[382605868,1756677052255,-247.00210216,0.00017597,2]
[382605943,1756677053084,-232.99789784,0.00017597,2]
[382605945,1756677053094,-77.38879333,0.00017597,2]
[382605975,1756677053360,480.0,0.000165,2]
[382606013,1756677053719,480.0,0.000165,2]
[382606287,1756677056518,480.0,0.000165,2]
[382606432,1756677058293,480.0,0.000165,2]
[382606847,1756677062461,300.0,0.000165,2]
[382606929,1756677064401,480.0,0.000165,2]
[382606932,1756677065965,480.0,0.000165,2]
[382606945,1756677066667,178.553047,0.00015941,2]
[382606953,1756677073302,480.0,0.000165,2]
[382606954,1756677074825,480.0,0.000165,2]
[382606955,1756677082326,1411.63,0.000165,2]
[382606956,1756677083512,480.0,0.000165,2]
[382606957,1756677095086,480.0,0.000165,2]
[382606958,1756677095215,1179.01,0.000165,2]
[382606959,1756677096366,480.0,0.000165,2]
[382606960,1756677101143,480.0,0.000165,2]
[382606961,1756677103516,1009.25,0.000165,2]
[382606962,1756677107649,213.2438617,0.00015547,2]
[382606963,1756677109162,1100.97,0.000165,2]
[382606964,1756677115590,762.21,0.000165,2]
[382606965,1756677123865,480.0,0.000165,2]
[382606966,1756677123911,300.0,0.000165,2]
[382606967,1756677124122,538.14,0.000165,2]
[382606968,1756677125750,480.0,0.000165,2]
[382606969,1756677127415,1200.0,0.000165,2]
[382607224,1756677131867,666.0,0.00015547,2]
[382607309,1756677132683,480.0,0.000165,2]
[382607453,1756677134166,480.0,0.000165,2]
[382607474,1756677134377,480.0,0.000165,2]
[382607601,1756677135749,734.59,0.000165,2]
[382607810,1756677138159,480.0,0.000165,2]
[382608142,1756677141541,480.0,0.000165,2]
[382608384,1756677144029,480.0,0.000165,2]
[382608524,1756677145471,718.93,0.000165,2]
[382608840,1756677149143,619.17,0.000165,2]
[382609114,1756677153631,480.0,0.000165,2]
[382609115,1756677153661,480.0,0.000165,2]
[382609116,1756677155427,480.0,0.000165,2]
[382609117,1756677159537,491.3,0.000165,2]
[382609118,1756677163672,480.0,0.000165,2]
[382609119,1756677166874,39961.731482,0.00015505,2]
[382609120,1756677168807,480.0,0.000165,2]
[382609121,1756677175260,480.0,0.000165,2]
[382609122,1756677177802,480.0,0.000165,2]
[382609123,1756677182169,515.52,0.000165,2]
[382609124,1756677182904,300.0,0.00016499,2]
[382609125,1756677189070,480.0,0.000165,2]
[382609127,1756677189304,161.396463,0.00025,30]
[382609130,1756677190584,480.0,0.000165,2]
[382609133,1756677192176,480.0,0.000165,2]
[382609134,1756677198867,614.56,0.000165,2]
[382609135,1756677200111,480.0,0.000165,2]
[382609136,1756677206546,429.64209308,0.000165,2]
[382609139,1756677214277,605.77,0.000165,2]
[382609140,1756677214588,663.73,0.000165,2]
[382609142,1756677217550,480.0,0.000165,2]
[382609143,1756677220848,480.0,0.000165,2]
[382609144,1756677222490,480.0,0.000165,2]
[382609145,1756677229235,506.68,0.000165,2]
[382609146,1756677232241,480.0,0.000165,2]
[382609147,1756677234723,480.0,0.000165,2]
[382609148,1756677242252,300.0,0.00016499,2]
[382609149,1756677242601,684.94,0.000165,2]
[382609150,1756677251226,480.0,0.000165,2]
[382609151,1756677257509,480.0,0.000165,2]
[382609152,1756677259150,480.0,0.000165,2]
[382609153,1756677264821,480.0,0.000165,2]
[382609154,1756677270688,480.0,0.000165,2]
[382609155,1756677275335,1223.87303013,0.00016403,2]
[382609156,1756677277821,480.0,0.000165,2]
[382609157,1756677278139,480.0,0.000165,2]
[382609158,1756677278431,480.0,0.000165,2]
[382609159,1756677278565,480.0,0.000165,2]
[382609160,1756677284589,480.0,0.000165,2]
[382609161,1756677286330,646.89,0.000165,2]
[382609162,1756677290108,636.19,0.000165,2]
[382609163,1756677292311,480.0,0.000165,2]
[382609164,1756677294384,522.19,0.000165,2]
[382609165,1756677302205,300.0,0.00016499,2]
[382609166,1756677302247,300.0,0.00016499,2]
[382609167,1756677302516,300.0,0.00016499,2]
[382609168,1756677302547,300.0,0.00016499,2]
[382609169,1756677302580,158.39082212,0.00016203,2]
[382609170,1756677302726,507.39,0.000165,2]
[382609171,1756677303134,300.0,0.00016499,2]
[382609172,1756677305783,1200.0,0.00016499,2]
[382609173,1756677311287,1352.82,0.000165,2]
[382609174,1756677311732,556.95,0.000165,2]
[382609175,1756677324723,480.0,0.000165,2]
[382609176,1756677331566,627.05,0.000165,2]
[382609177,1756677345713,566.3,0.000165,2]
[382609178,1756677354218,480.0,0.000165,2]
[382609181,1756677360744,480.0,0.000165,2]
[382609182,1756677360970,304.40385016,0.000165,2]
[382609183,1756677362208,158.39082212,0.00016203,2]
[382609184,1756677363769,300.0,0.00016499,2]
[382609185,1756677364185,730.46,0.000165,2]
[382609186,1756677367037,634.49,0.000165,2]
[382609187,1756677370130,1129.88,0.000165,2]
[382609188,1756677377738,480.0,0.000165,2]
[382609189,1756677381684,494.49,0.000165,2]
[382609190,1756677382343,661.12,0.000165,2]
[382609191,1756677394650,616.15,0.000165,2]
[382609192,1756677397536,1055.1,0.000165,2]
[382609193,1756677402779,707.61,0.000165,2]
[382609194,1756677403682,480.0,0.000165,2]
[382609195,1756677419486,3759.18,0.000165,2]
[382609196,1756677419517,480.0,0.000165,2]
[382609197,1756677422208,158.39082211,0.00016203,2]
[382609198,1756677422868,300.0,0.00016499,2]
[382609199,1756677427843,1200.0,0.00016499,2]
[382609200,1756677429964,480.0,0.000165,2]
[382609201,1756677431346,480.0,0.000165,2]
[382609202,1756677431550,480.0,0.000165,2]
[382609203,1756677435505,491.55,0.000165,2]
[382609204,1756677440343,751.64,0.000165,2]
[382609205,1756677442500,1900.35,0.000165,2]
[382609206,1756677444322,480.0,0.000165,2]
[382609207,1756677444720,619.45,0.000165,2]
[382609208,1756677448042,480.0,0.000165,2]
[382609209,1756677449286,480.0,0.000165,2]
[382609210,1756677451983,494.04,0.000165,2]
[382609211,1756677455515,480.0,0.000165,2]
[382609212,1756677456789,480.0,0.000165,2]
[382609213,1756677457885,480.0,0.000165,2]
[382609214,1756677459961,480.0,0.000165,2]
[382609215,1756677461952,588.95,0.000165,2]
[382609216,1756677468633,480.0,0.000165,2]
[382609217,1756677471359,480.0,0.000165,2]
[382609218,1756677473300,480.0,0.000165,2]
[382609219,1756677482338,300.0,0.00016499,2]
[382609220,1756677483021,929.48,0.000165,2]
[382609221,1756677488067,480.0,0.000165,2]
[382609222,1756677488337,1070.88890132,0.00016401,2]
[382609223,1756677489296,580.53,0.000165,2]
[382609224,1756677491449,480.0,0.000165,2]
[382609225,1756677494275,224.77927831,0.000165,2]
[382609226,1756677494341,2778.62,0.000165,2]
[382609227,1756677495647,900.25,0.000165,2]
[382609228,1756677496158,203.693808,0.00016006,2]
[382609229,1756677496477,162.47315608,0.00016008,2]
[382609230,1756677502971,541.06,0.000165,2]
[382609231,1756677506521,480.0,0.000165,2]
[382609232,1756677506809,250.0,0.00016327,2]
[382609233,1756677510385,480.0,0.000165,2]
[382609234,1756677513957,138.23485629,0.000165,2]
[382609235,1756677513990,341.76514371,0.000165,2]
[382609236,1756677515056,480.0,0.000165,2]
[382609237,1756677518324,652.62,0.000165,2]
[382609238,1756677522006,656.4,0.000165,2]
[382609239,1756677522398,-500.0,0.000165,2]
[382609240,1756677522440,-500.0,0.000165,2]
[382609241,1756677522485,-500.0,0.000165,2]
[382609242,1756677522527,-500.0,0.000165,2]
[382609243,1756677522573,-442.17494171,0.000165,2]
[382609244,1756677522612,-480.0,0.00016501,2]
[382609245,1756677522651,-748.99917642,0.00016501,2]
[382609246,1756677522690,-480.0,0.00016501,2]
[382609247,1756677522730,-564.24,0.00016501,2]
[382609248,1756677522956,-89.18176374,0.00016501,2]
[382609249,1756677523317,-390.81823626,0.00016501,2]
[382609250,1756677523352,-480.0,0.00016501,2]
[382609251,1756677523388,-480.0,0.00016501,2]
[382609252,1756677523422,-480.0,0.00016501,2]
[382609253,1756677523456,-480.0,0.00016501,2]
[382609254,1756677523490,-480.0,0.00016501,2]
[382609255,1756677523525,-480.0,0.00016501,2]
[382609256,1756677523560,-480.0,0.00016501,2]
[382609257,1756677523593,-480.0,0.00016501,2]
[382609258,1756677523627,-480.0,0.00016501,2]
[382609259,1756677523662,-98.37352748,0.00016501,2]
[382609260,1756677523817,-381.62647252,0.00016501,2]
[382609261,1756677523854,-480.0,0.00016501,2]
[382609262,1756677523893,-807.92,0.00016501,2]
[382609263,1756677523931,-300.99974728,0.00016501,2]
[382609264,1756677523967,-480.0,0.00016501,2]
[382609265,1756677524003,-480.0,0.00016501,2]
[382609266,1756677524095,-480.0,0.00016501,2]
[382609267,1756677524182,-480.0,0.00016501,2]
[382609268,1756677524278,-619.63,0.00016501,2]
[382609269,1756677524352,-405.3475604,0.00016501,2]
[382609270,1756677524738,-168.9624396,0.00016501,2]
[382609271,1756677524829,-480.0,0.00016501,2]
[382609272,1756677524920,-480.0,0.00016501,2]
[382609273,1756677525009,-480.0,0.00016501,2]
[382609274,1756677525097,-817.99,0.00016501,2]
[382609275,1756677525182,-480.0,0.00016501,2]
[382609276,1756677525266,-480.0,0.00016501,2]
[382609277,1756677525353,-262.9651208,0.00016501,2]
[382609278,1756677525448,-2700.1748792,0.00016501,2]
[382609279,1756677525533,-480.0,0.00016501,2]
[382609280,1756677525618,-480.0,0.00016501,2]
[382609281,1756677525707,-1279.7402416,0.00016501,2]
[382609282,1756677525807,7869.22485629,0.00016403,2]
[382609283,1756677525894,7721.44602187,0.00016403,2]
[382609284,1756677525990,-120.1797584,0.00016501,2]
[382609285,1756677526078,-480.0,0.00016501,2]
[382609286,1756677526162,-480.0,0.00016501,2]
[382609287,1756677526246,-971.42,0.00016501,2]
[382609288,1756677526332,-480.0,0.00016501,2]
[382609289,1756677526418,-480.0,0.00016501,2]
[382609290,1756677526506,-480.0,0.00016501,2]
[382609291,1756677526592,-618.44,0.00016501,2]
[382609292,1756677526679,-480.0,0.00016501,2]
[382609293,1756677527987,-856.87,0.00016501,2]
[382609294,1756677528086,-782.76,0.00016501,2]
[382609295,1756677528181,-480.0,0.00016501,2]
[382609296,1756677528275,-480.0,0.00016501,2]
[382609297,1756677528369,-480.0,0.00016501,2]
[382609298,1756677528470,-1516.87,0.00016501,2]
[382609299,1756677528891,-1734.76,0.00016501,2]
[382609300,1756677528988,-480.0,0.00016501,2]
[382609301,1756677529971,480.0,0.000165,2]
[382609302,1756677534813,-3918.34011272,0.00016501,2]
[382609303,1756677534892,-10000.01,0.00016501,2]
[382609304,1756677534969,-10000.01,0.00016501,2]
[382609305,1756677535060,-10000.01,0.00016501,2]
[382609306,1756677535175,-10000.01,0.00016501,2]
[382609307,1756677535254,-6081.61988728,0.00016501,2]
[382609308,1756677535263,-480.0,0.00016503,2]
[382609309,1756677535273,-480.0,0.00016503,2]
[382609310,1756677535282,-480.0,0.00016503,2]
[382609311,1756677535291,-818.99,0.00016503,2]
[382609312,1756677535301,-816.31,0.00016503,2]
[382609313,1756677535311,-480.0,0.00016503,2]
[382609314,1756677535320,-363.09011272,0.00016503,2]
[382609315,1756677535405,-116.90988728,0.00016503,2]
[382609316,1756677535414,-480.0,0.00016503,2]
[382609317,1756677535424,-480.0,0.00016503,2]
[382609318,1756677535436,-480.0,0.00016503,2]
[382609319,1756677535446,-480.0,0.00016503,2]
[382609320,1756677535456,-838.09,0.00016503,2]
[382609321,1756677535466,-480.0,0.00016503,2]
[382609322,1756677535476,-480.0,0.00016503,2]
[382609323,1756677535485,-836.95,0.00016503,2]
[382609324,1756677535495,-480.0,0.00016503,2]
[382609325,1756677535504,-480.0,0.00016503,2]
[382609326,1756677535514,-480.0,0.00016503,2]
[382609327,1756677535523,-480.0,0.00016503,2]
[382609328,1756677535534,-480.0,0.00016503,2]
[382609329,1756677535543,-480.0,0.00016503,2]